bitfinex/quotes_ETHUSD_20260114
["timestamp","ask_amount","ask_price","bid_price","bid_amount"]
[1768416907737,0.93240549,3338.2,3337.1,0.394]
[1768416907935,0.93240549,3338.2,3337.1,3.39055629]
[1768416908145,0.93240549,3338.0,3337.1,0.394]
[1768416908569,0.93240549,3338.4,3337.1,0.394]
[1768416909260,0.93240549,3338.4,3337.1,1.03277665]
[1768416909570,0.93240549,3338.8,3337.1,2.02213485]
[1768416910072,0.93240549,3338.1,3336.7,0.9893582]
[1768416910271,0.93240549,3338.1,3337.0,2.99664248]
[1768416910568,0.96985306,3338.0,3336.3,0.9893582]
[1768416910867,0.96985306,3338.0,3336.3,2.99725043]
[1768416911059,0.93240549,3337.8,3336.2,2.99736566]
[1768416911256,0.93240549,3337.8,3336.3,2.99733002]
[1768416911459,0.93240549,3337.8,3335.8,2.99775722]
[1768416911665,0.93240549,3337.8,3335.7,2.99778341]
[1768416911839,0.93240549,3337.8,3335.3,3.39219414]
[1768416912038,16.7771319,3338.2,3335.5,3.98740851]
[1768416912039,0.93240549,3337.6,3335.5,3.98740851]
[1768416912242,0.93240549,3337.4,3335.6,0.9893582]
[1768416912792,1.33140549,3337.4,3335.6,0.9893582]
[1768416913176,0.93240549,3337.3,3335.6,0.9893582]
[1768416913690,1.33140549,3337.3,3335.6,0.9893582]
[1768416913895,0.93240549,3337.3,3335.8,0.9893582]
[1768416914099,1.33140549,3337.3,3336.0,5.99520382]
[1768416914271,0.93240549,3337.7,3336.0,9.98216393]
[1768416914480,1.33140549,3337.7,3336.1,0.9893582]
[1768416914663,0.93240549,3337.6,3336.0,5.99520382]
[1768416914869,0.93240549,3337.6,3336.0,3.96224252]
[1768416915087,0.93240549,3337.6,3336.0,5.99520382]
[1768416915390,0.93240549,3337.4,3336.0,5.99520382]
[1768416915771,0.93240549,3337.4,3336.0,9.98216393]
[1768416915972,0.93240549,3338.1,3336.1,0.9893582]
[1768416916172,0.001,3338.3,3336.3,0.9893582]
[1768416916173,0.93240549,3337.9,3336.3,0.9893582]
[1768416916375,0.93240549,3337.7,3336.4,0.69842026]
[1768416916701,0.93240549,3337.7,3336.4,1.09242026]
[1768416918182,0.93240549,3337.6,3336.5,5.9943054]
[1768416918387,0.399,3337.7,3336.5,5.9943054]
[1768416918589,1.33140549,3337.7,3336.5,5.9943054]
[1768416919272,0.93240549,3337.7,3336.5,5.9943054]
[1768416919965,0.93240549,3337.5,3336.4,3.39116452]
[1768416920167,3.96622511,3337.4,3336.4,3.39116452]
[1768416920384,3.96622511,3337.4,3335.4,3.3373349]
[1768416920385,0.95219417,3337.2,3335.4,0.33921941]
[1768416920719,9.02655026,3337.4,3335.9,2.99764248]
[1768416920720,0.95219417,3337.0,3335.9,2.99764248]
[1768416920929,0.95219417,3337.0,3335.6,2.99794634]
[1768416921078,0.98965296,3337.0,3335.2,2.99830729]
[1768416921282,0.95219417,3337.0,3336.7,0.002]
[1768416921586,0.95219417,3337.0,3336.4,0.002]
[1768416921786,0.399,3336.9,3335.8,2.99772853]
[1768416921985,0.97755459,3336.8,3335.7,2.99786791]
[1768416922186,0.97755459,3336.6,3335.1,0.394]
[1768416922394,0.97755459,3336.4,3335.1,0.394]
[1768416922607,0.97755459,3336.4,3335.2,5.99664188]
[1768416922824,0.97755459,3336.4,3335.2,2.99832094]
[1768416923128,0.97755459,3336.4,3335.2,5.99664188]
[1768416924306,3.97488275,3336.4,3335.2,5.99664188]
[1768416924510,0.97755459,3336.2,3335.0,0.002]
[1768416924687,0.97755459,3336.2,3335.0,3.00044925]
[1768416924892,0.97755459,3336.2,3335.0,0.002]
[1768416926384,0.97755459,3336.0,3335.0,0.002]
[1768416926609,0.9970039,3335.9,3335.0,0.92728096]
[1768416926810,1.75440163,3336.3,3335.0,0.002]
[1768416926998,1.01502236,3336.2,3335.0,0.002]
[1768416927199,0.97755459,3336.2,3335.0,0.002]
[1768416928096,0.97755459,3336.6,3335.0,0.92728096]
[1768416928789,0.399,3336.8,3335.2,0.92528096]
[1768416928997,0.97755459,3336.7,3335.3,0.394]
[1768416929210,1.01501787,3336.6,3335.3,0.394]
[1768416929415,0.97755459,3336.6,3335.1,6.39082168]
[1768416929595,0.97755459,3336.6,3335.1,7.42248551]
[1768416930307,0.97755459,3336.6,3335.2,0.92528096]
[1768416930519,0.399,3336.6,3335.2,0.92528096]
[1768416931102,3.97436573,3336.9,3335.3,5.99646208]
[1768416931290,0.399,3336.8,3335.3,5.99646208]
[1768416931598,0.97755459,3336.6,3335.3,5.99646208]
[1768416932110,1.01501787,3336.6,3335.3,5.99646208]
[1768416932302,0.97755459,3336.6,3335.3,5.99646208]
[1768416932618,0.43733568,3336.7,3335.4,0.92528096]
[1768416932818,0.97755459,3336.8,3335.4,0.92528096]
[1768416933020,0.97755459,3337.6,3335.6,0.92528096]
[1768416933191,0.97755459,3337.2,3335.7,0.394]
[1768416933396,0.97755459,3337.0,3335.7,0.394]
[1768416933598,0.97755459,3337.0,3335.7,0.396]
[1768416933793,0.97755459,3336.8,3335.7,0.396]
[1768416934191,0.97755459,3336.6,3335.7,0.002]
[1768416934407,0.97755459,3336.4,3335.7,0.002]
[1768416934627,0.97755459,3336.2,3335.7,0.002]
[1768416935430,0.97755459,3336.5,3335.7,0.002]
[1768416935896,0.97755459,3336.3,3335.7,0.002]
[1768416936595,0.97755459,3336.1,3335.0,0.002]
[1768416937218,3.97507653,3336.1,3335.0,0.002]
[1768416938220,0.97755459,3336.1,3335.0,0.002]
[1768416938410,3.97506794,3336.1,3335.0,0.002]
[1768416938613,0.97755459,3335.9,3335.0,0.002]
[1768416938806,0.97755459,3335.7,3335.0,0.002]
[1768416939005,0.03747114,3335.9,3335.0,0.002]
[1768416939227,2.9978175,3336.9,3335.2,0.92528096]
[1768416939396,5.994635,3336.9,3335.4,0.92528096]
[1768416939596,3.69503646,3336.9,3335.5,0.02998051]
[1768416939796,6.69185396,3336.9,3335.4,0.92528096]
[1768416939995,7.66940855,3336.9,3335.4,0.92528096]
[1768416940222,4.67259105,3336.9,3335.4,0.92528096]
[1768416941024,3.97537209,3336.9,3335.4,0.92528096]
[1768416941220,0.001,3336.9,3335.6,0.92528096]
[1768416941418,0.001,3336.9,3335.6,1.31928096]
[1768416941626,0.97855459,3336.9,3335.6,0.394]
[1768416943218,3.97540886,3336.9,3335.7,5.99574302]
[1768416943418,6.97226313,3336.9,3335.8,0.6389743]
[1768416943822,0.97755459,3336.8,3335.6,2.99791068]
[1768416944132,2.99785427,3336.9,3335.7,0.95525967]
[1768416944338,2.99785427,3336.9,3335.7,0.92528096]
[1768416944536,0.001,3336.9,3335.7,0.92528096]
[1768416944708,2.99779909,3336.9,3335.7,0.92528096]
[1768416944909,3.43523446,3336.9,3335.8,0.7315153]
[1768416945231,0.001,3336.9,3335.9,5.99538354]
[1768416945406,0.001,3336.9,3336.0,0.92528096]
[1768416945603,0.001,3336.9,3335.9,5.99538354]
[1768416945604,0.97755459,3337.6,3336.2,0.92528096]
[1768416945803,2.99595805,3337.9,3336.2,0.92528096]
[1768416946237,2.99575244,3338.1,3336.2,0.92528096]
[1768416946450,3.74370567,3338.1,3336.2,0.92528096]
[1768416946738,3.74367581,3338.1,3336.2,0.92528096]
[1768416946916,0.001,3336.6,3336.2,0.92528096]
[1768416947113,0.51066912,3338.2,3336.5,7.14316156]
[1768416947314,0.51066912,3338.2,3336.8,0.92528096]
[1768416947519,0.51066912,3338.2,3337.0,0.92528096]
[1768416949631,0.51066912,3338.2,3337.1,5.99322764]
[1768416949632,0.03744645,3338.1,3337.1,5.99322764]
[1768416949833,0.03744757,3338.0,3337.0,2.99667088]
[1768416950138,0.03744757,3338.0,3336.6,0.92528096]
[1768416950139,0.97755459,3338.0,3336.6,2.99705704]
[1768416950343,0.97384938,3337.9,3335.8,1.7268489]
[1768416950518,0.97384938,3337.9,3336.5,2.99713426]
[1768416950719,0.97384938,3337.7,3336.4,2.99723495]
[1768416951041,0.97384938,3337.7,3336.5,2.99713598]
[1768416951042,0.03745206,3337.6,3336.5,2.99713598]
[1768416951211,0.97384938,3337.6,3335.9,3.99299181]
[1768416951550,2.99625468,3337.5,3336.1,5.99502412]
[1768416951747,0.69662323,3337.4,3336.2,2.03353519]
[1768416951927,2.99620271,3337.6,3336.2,2.03353519]
[1768416952726,5.99240542,3337.6,3336.2,2.03353519]
[1768416953420,6.9662548,3337.6,3336.2,1.03820159]
[1768416953618,6.9662548,3337.6,3336.3,5.99466474]
[1768416954058,3.97005209,3337.6,3336.3,5.99466474]
[1768416954252,0.69661453,3337.5,3336.4,0.70328663]
[1768416955330,1.799,3337.4,3336.5,0.02997152]
[1768416955547,0.69661453,3337.5,3336.6,0.394]
[1768416955846,0.69661453,3337.5,3336.7,2.99697305]
[1768416956620,3.69286972,3337.5,3336.7,2.99697305]
[1768416957246,0.69661453,3337.5,3336.6,3.39106112]
[1768416957448,3.69287774,3337.5,3336.6,3.39101457]
[1768416957871,0.46667271,3337.4,3336.6,0.394]
[1768416958074,2.99635471,3337.4,3336.6,0.394]
[1768416958372,3.97020409,3337.4,3336.5,0.394]
[1768416958548,3.97020409,3337.4,3336.5,3.39109669]
[1768416958756,0.97384938,3337.3,3336.2,0.394]
[1768416958950,0.97384938,3337.1,3336.2,0.394]
[1768416959150,1.01130817,3337.0,3336.1,0.002]
[1768416959466,1.01130817,3337.0,3336.1,0.396]
[1768416959660,1.01130817,3337.0,3336.1,0.002]
[1768416959861,0.97384938,3336.8,3336.1,0.002]
[1768416960161,0.97384938,3336.6,3335.8,0.002]
[1768416960357,0.399,3336.6,3335.8,0.002]
[1768416960946,3.97058556,3337.0,3335.8,0.396]
[1768416961645,2.99643424,3337.3,3335.9,1.02531051]
[1768416961841,0.001,3337.6,3336.1,0.9953336]
[1768416962062,0.73659997,3337.5,3336.2,1.72436156]
[1768416962263,0.001,3337.6,3336.3,0.9953336]
[1768416962459,0.001,3337.6,3336.4,1.3893336]
[1768416963779,0.001,3337.6,3336.4,0.394]
[1768416963960,0.001,3337.6,3336.5,2.9971527]
[1768416964166,0.001,3337.6,3336.6,0.63884254]
[1768416964778,1.01230144,3337.6,3336.5,0.394]
[1768416964974,0.97384938,3337.5,3336.3,0.394]
[1768416965143,0.97384938,3337.5,3336.3,3.39127517]
[1768416965347,0.97384938,3337.5,3336.3,0.394]
[1768416965576,1.03620748,3337.4,3336.4,2.99723547]
[1768416965950,5.99286848,3337.3,3336.3,0.394]
[1768416966149,2.99643424,3337.3,3336.3,0.394]
[1768416966392,2.99643424,3337.3,3336.3,3.39132256]
[1768416966953,0.4,3337.6,3336.3,3.39132256]
[1768416966954,0.001,3337.6,3336.4,0.9953336]
[1768416967173,2.99718244,3337.6,3336.5,0.73839885]
[1768416967981,0.001,3337.6,3336.6,2.99706287]
[1768416968549,0.001,3337.6,3336.5,3.73552055]
[1768416968755,0.001,3337.6,3336.5,6.989608]
[1768416969784,0.001,3337.6,3336.6,0.394]
[1768416970079,0.001,3337.6,3336.6,3.3910232]
[1768416971167,0.001,3337.3,3336.6,6.38808607]
[1768416971686,0.001,3337.3,3336.6,3.3910232]
[1768416971882,0.001,3337.3,3336.7,0.73835752]
[1768416973489,0.001,3337.3,3336.8,2.99688324]
[1768416974086,0.001,3337.3,3336.7,3.7353068]
[1768416974389,0.001,3337.3,3336.7,0.73835752]
[1768416974595,0.001,3337.3,3336.8,0.394]
[1768416976625,0.001,3337.3,3335.9,2.99766255]
[1768416976626,0.97484938,3337.3,3335.9,0.9953336]
[1768416976896,0.97384938,3337.1,3336.2,2.99741194]
[1768416977126,0.97384938,3337.1,3336.3,2.99732308]
[1768416977596,0.97384938,3337.1,3336.1,5.99502087]
[1768416977798,1.53150385,3337.1,3336.1,5.99502087]
[1768416977975,4.52812414,3337.1,3336.1,2.99750881]
[1768416978564,0.001,3337.3,3336.1,6.99035447]
[1768416978773,2.99608863,3337.7,3336.6,0.9953336]
[1768416978967,2.99608863,3337.7,3336.7,0.394]
[1768416979169,0.97384938,3337.6,3336.7,0.394]
[1768416979398,1.37084318,3337.6,3336.7,0.394]
[1768416979595,2.99625468,3337.5,3336.7,0.394]
[1768416979902,0.97384938,3337.4,3336.5,2.99715057]
[1768416980082,0.97384938,3337.4,3336.4,2.99720706]
[1768416980281,0.03745542,3337.3,3336.5,0.394]
[1768416980492,0.97384938,3337.4,3336.5,4.03000087]
[1768416980692,0.97384938,3337.4,3336.5,1.03286072]
[1768416981191,0.97384938,3337.4,3336.5,0.63886072]
[1768416981391,0.97384938,3337.4,3336.5,1.03286072]
[1768416981610,0.97384938,3337.4,3335.9,0.9953336]
[1768416981810,0.9125602,3337.2,3336.0,0.394]
[1768416982204,0.95001787,3337.1,3336.0,0.394]
[1768416982509,2.99643424,3337.3,3336.0,6.38920382]
[1768416982710,0.9125602,3337.2,3336.0,3.39160191]
[1768416982880,0.9125602,3337.1,3336.1,0.72926207]
[1768416983894,3.90917937,3337.1,3336.1,3.72669968]
[1768416984589,3.90917937,3337.1,3336.1,6.72421174]
[1768416985110,6.94325621,3337.1,3336.1,3.72675547]
[1768416985313,6.90579854,3337.1,3336.1,3.72675547]
[1768416985512,3.90917937,3337.1,3336.1,3.72675547]
[1768416985989,3.90917937,3337.1,3336.2,0.80196936]
[1768416987616,3.90917937,3337.1,3336.3,0.394]
[1768416989422,3.90917937,3337.1,3336.3,3.39131976]
[1768416989920,3.90917937,3337.1,3336.3,0.394]
[1768416990728,3.90917937,3337.1,3336.3,3.39132185]
[1768416991224,0.001,3337.2,3336.4,0.90133736]
[1768416991727,3.9101259,3337.2,3336.3,0.394]
[1768416991928,0.9135602,3337.2,3336.3,3.39130106]
[1768416992135,0.9135602,3337.2,3336.3,6.38863343]
[1768416992923,0.9125602,3337.1,3336.3,3.39132881]
[1768416993136,0.9125602,3337.1,3336.3,4.12034658]
[1768416994025,0.001,3337.2,3336.3,7.11767895]
[1768416995104,0.9125602,3337.7,3336.4,0.90133736]
[1768416995300,2.99620175,3337.6,3336.4,0.90133736]
[1768416995611,0.9125602,3337.5,3336.4,0.90133736]
[1768416995806,0.9125602,3337.5,3336.6,0.002]
[1768416996636,3.90890465,3337.4,3336.6,0.002]
[1768416996928,0.03745542,3337.3,3336.6,0.002]
[1768416997247,0.9125602,3337.4,3336.6,0.002]
[1768416997603,0.03745542,3337.3,3336.6,0.002]
[1768416997934,0.9125602,3337.4,3336.7,0.67982435]
[1768416998108,0.9125602,3337.4,3336.8,0.394]
[1768416999531,0.9125602,3337.3,3336.8,0.394]
[1768417000906,3.90908423,3337.2,3336.8,0.394]
[1768417001231,0.9125602,3337.1,3336.8,0.394]
[1768417001614,0.9125602,3337.3,3336.8,0.394]
[1768417001814,0.9125602,3337.1,3336.8,0.394]
[1768417002014,0.9125602,3337.1,3336.6,0.002]
[1768417002955,0.9125602,3336.8,3336.6,0.002]
[1768417003156,3.90929206,3337.0,3336.6,0.002]
[1768417004328,0.9125602,3336.9,3336.6,0.002]
[1768417005357,2.99643424,3337.3,3336.6,0.002]
[1768417005574,0.69052651,3337.3,3336.6,0.002]
[1768417005871,3.90892089,3337.4,3336.6,0.002]
[1768417006565,2.99618964,3337.6,3336.7,0.90133736]
[1768417006733,2.99605499,3337.8,3336.7,0.93130709]
[1768417006929,2.99580587,3338.0,3336.8,2.99688324]
[1768417007134,1.30339681,3337.9,3336.9,0.90133736]
[1768417007360,1.30339681,3337.9,3336.8,3.72601068]
[1768417007660,1.30339681,3337.9,3336.8,7.62423128]
[1768417007859,0.9125602,3337.9,3336.9,0.90133736]
[1768417008065,2.99580587,3338.0,3336.9,0.90133736]
[1768417008439,0.001,3337.5,3336.9,0.90133736]
[1768417009067,0.001,3337.5,3337.0,3.89804098]
[1768417009265,0.001,3337.5,3337.1,0.90133736]
[1768417009442,0.9125602,3338.9,3337.3,0.90133736]
[1768417009649,0.9125602,3338.7,3337.3,0.90133736]
[1768417011034,5.99053494,3338.6,3337.4,3.99378208]
[1768417011237,6.90143249,3338.6,3337.4,3.99378208]
[1768417011436,6.90143249,3338.6,3337.5,0.80737376]
[1768417012058,3.90616502,3338.6,3337.5,0.80737376]
[1768417012258,3.90616502,3338.6,3337.5,1.80481139]
[1768417012458,2.99526747,3338.6,3337.6,0.99743763]
[1768417012831,5.99053494,3338.6,3337.6,0.99743763]
[1768417013035,6.90107365,3338.8,3337.7,0.87411558]
[1768417013432,0.91089755,3338.7,3337.7,0.87411558]
[1768417015260,5.99053494,3338.6,3337.7,0.87411558]
[1768417015770,6.90143249,3338.6,3337.7,0.87411558]
[1768417016059,6.90143249,3338.6,3337.7,0.394]
[1768417016647,6.90143249,3338.6,3336.7,6.88891757]
[1768417016648,0.91089755,3338.5,3336.7,4.88943763]
[1768417016960,0.91089755,3338.3,3337.0,0.99743763]
[1768417017137,2.99562638,3338.2,3337.2,0.99743763]
[1768417017336,3.72573376,3338.2,3337.2,0.99743763]
[1768417017577,7.63225769,3338.2,3337.2,0.99743763]
[1768417017779,7.63225769,3338.2,3337.0,3.99410248]
[1768417017993,0.91089755,3338.1,3337.0,3.99410248]
[1768417018178,0.91089755,3338.1,3337.0,6.9908061]
[1768417018508,0.91089755,3338.1,3337.1,0.81139335]
[1768417019292,3.90627068,3338.5,3337.3,0.99743763]
[1768417019499,6.90171597,3338.5,3337.4,1.39143763]
[1768417019803,0.91089755,3338.4,3337.4,1.39143763]
[1768417019975,2.99537313,3338.5,3337.5,0.99743763]
[1768417020176,2.99499835,3338.9,3337.6,1.02739927]
[1768417020379,2.99499835,3338.9,3337.6,0.99743763]
[1768417020579,0.21536135,3339.0,3337.6,1.02739927]
[1768417020580,0.001,3338.4,3337.6,1.02739927]
[1768417020898,6.20534549,3339.0,3338.0,0.99743763]
[1768417021086,6.20534549,3339.0,3338.1,0.394]
[1768417021291,7.11624304,3339.0,3338.1,0.394]
[1768417021501,0.94833502,3338.9,3337.3,0.99943763]
[1768417021688,0.21536135,3339.0,3337.8,0.99743763]
[1768417021875,0.0231667,3339.3,3338.7,0.99743763]
[1768417022074,0.62438348,3339.3,3338.4,0.99743763]
[1768417022272,1.16852391,3340.0,3338.8,0.99743763]
[1768417022474,1.16852391,3340.0,3338.5,0.99743763]
[1768417022475,0.91089755,3339.9,3338.5,0.99743763]
[1768417022791,7.15661661,3340.0,3338.6,0.394]
[1768417022792,0.91089755,3339.7,3338.6,0.394]
[1768417022979,0.91089755,3339.7,3338.1,6.98884975]
[1768417023180,10.15066296,3340.0,3337.7,0.394]
[1768417023181,0.91089755,3339.3,3337.7,0.394]
[1768417023385,0.91089755,3339.1,3337.7,0.394]
[1768417023591,0.43643411,3339.2,3337.7,0.394]
[1768417023592,0.91089755,3338.9,3337.7,0.394]
[1768417023803,0.399,3339.2,3337.4,0.99743763]
[1768417023804,0.94833615,3338.8,3337.4,0.99743763]
[1768417024129,0.94833615,3338.8,3337.3,2.99843281]
[1768417024130,0.91089755,3338.6,3337.3,0.002]
[1768417024271,0.399,3338.7,3337.3,0.002]
[1768417024272,0.91089755,3338.4,3337.3,0.002]
[1768417024471,0.91089755,3338.2,3337.3,0.002]
[1768417024769,0.91089755,3338.2,3337.0,1e-08]
[1768417024770,0.91089755,3338.0,3337.0,1e-08]
[1768417024987,0.91089755,3337.8,3337.0,1e-08]
[1768417025417,5.99215028,3337.7,3337.0,1e-08]
[1768417028479,0.91089755,3337.6,3337.0,1e-08]
[1768417029014,0.91089755,3337.5,3337.0,1e-08]
[1768417029529,0.91089755,3337.5,3336.3,0.002]
[1768417029802,5.99286848,3337.3,3335.8,1.02941544]
[1768417030022,2.99643424,3337.3,3335.8,0.99943763]
[1768417030177,2.99598537,3337.8,3336.0,0.99743763]
[1768417030381,2.99580587,3338.0,3336.2,0.99743763]
[1768417030688,2.99580587,3338.0,3336.4,0.99743763]
[1768417031100,2.99580587,3338.0,3336.6,0.99743763]
[1768417031415,2.99553665,3338.3,3336.8,0.99743763]
[1768417031622,6.90125307,3338.7,3337.2,0.99743763]
[1768417031919,0.91089755,3338.5,3337.3,0.69906903]
[1768417032216,0.91089755,3338.5,3337.0,2.99667931]
[1768417032430,0.91089755,3338.5,3337.0,6.99082056]
[1768417032628,1.01958006,3338.6,3337.1,0.99743763]
[1768417033372,0.91089755,3339.4,3337.1,0.99743763]
[1768417033521,0.91089755,3339.3,3337.3,0.99943763]
[1768417033850,5.98945854,3339.2,3337.6,0.99743763]
[1768417034050,5.98945854,3339.2,3337.7,0.394]
[1768417034268,1.0293906,3339.1,3337.8,0.7383947]
[1768417035832,5.9898173,3339.0,3337.8,0.7383947]
[1768417036037,0.94833502,3338.9,3337.7,0.394]
[1768417036263,0.94833502,3338.9,3337.5,2.99624368]
[1768417036464,0.94833502,3338.9,3337.6,0.394]
[1768417037072,0.91089755,3338.9,3337.6,3.39008516]
[1768417038067,2.99501989,3338.9,3337.7,0.99743763]
[1768417038274,5.99003978,3338.9,3337.8,0.73836877]
[1768417038846,2.99501989,3338.9,3337.8,0.73836877]
[1768417039782,8.62079809,3343.0,3337.9,0.99743763]
[1768417039783,0.91089755,3339.8,3337.9,0.99743763]
[1768417040073,0.91089755,3339.5,3338.0,2.99580587]
[1768417040262,0.91089755,3339.5,3338.1,0.47316123]
[1768417040663,0.91089755,3339.5,3338.2,0.394]
[1768417040856,1.03553228,3339.4,3338.2,0.394]
[1768417041053,1.03553228,3339.4,3338.1,0.47316123]
[1768417041242,0.99810041,3339.2,3337.9,0.394]
[1768417041444,0.99810041,3339.0,3337.6,2.99607656]
[1768417041655,0.99810041,3338.8,3337.7,0.394]
[1768417041974,2.99526747,3338.6,3337.7,3.39005057]
[1768417042475,2.99526747,3338.6,3337.7,2.99605057]
[1768417042671,4.69221656,3338.6,3337.6,0.394]
[1768417042871,7.68748403,3338.6,3337.6,0.394]
[1768417044171,7.68748403,3338.6,3337.5,2.99620344]
[1768417044341,0.03744196,3338.5,3337.6,0.394]
[1768417044673,1.80803497,3338.5,3337.4,2.99631158]
[1768417044980,0.99810041,3338.4,3337.3,0.396]
[1768417045146,0.99810041,3338.4,3337.4,2.99632318]
[1768417045676,0.7724926,3338.5,3337.6,2.99616376]
[1768417045850,2.99524727,3338.7,3337.7,0.02996075]
[1768417046051,5.9899967,3338.9,3337.6,4.31869819]
[1768417046257,0.99810041,3338.8,3337.6,1.32253443]
[1768417047282,0.99810041,3338.8,3337.6,4.31868769]
[1768417047481,0.99810041,3338.8,3337.6,3.33836589]
[1768417047648,1.91671012,3338.8,3337.7,0.63346203]
[1768417047849,0.99810041,3338.7,3337.7,0.63346203]
[1768417048068,2.99526747,3338.6,3337.7,3.62948298]
[1768417048378,3.99329003,3338.7,3337.8,0.02995985]
[1768417048972,0.99810041,3338.6,3337.7,0.63346203]
[1768417049273,0.99810041,3338.4,3337.5,2.99624182]
[1768417049477,0.99810041,3338.4,3337.3,3.39242749]
[1768417049478,0.99810041,3338.4,3337.6,2.99611263]
[1768417049679,0.99810041,3338.4,3337.5,2.99621776]
[1768417050351,0.99810041,3338.4,3337.6,2.99612896]
[1768417050961,3.99356303,3338.4,3337.5,2.99622578]
[1768417051155,3.99356303,3338.4,3337.6,0.73689582]
[1768417051156,0.99810041,3338.4,3337.6,0.73689582]
[1768417051369,3.99356302,3338.4,3337.6,0.73689582]
[1768417051769,0.99810041,3338.3,3337.3,0.002]
[1768417051970,0.99810041,3338.3,3337.3,0.396]
[1768417052355,0.99810041,3338.1,3337.3,0.396]
[1768417052886,0.99810041,3338.1,3337.3,0.002]
[1768417053053,0.99810041,3337.9,3337.3,0.002]
[1768417054384,2.99556033,3338.3,3337.3,0.002]
[1768417054555,1.91671012,3338.8,3337.4,0.9803218]
[1768417054871,0.99810041,3338.6,3337.3,2.99838813]
[1768417055055,1.03554237,3338.5,3337.3,2.99838813]
[1768417055255,0.99810041,3338.5,3337.3,2.99838813]
[1768417055457,0.99810041,3338.3,3337.3,2.99838813]
[1768417055651,0.99810041,3338.3,3337.4,0.394]
[1768417055861,0.99810041,3338.6,3337.4,0.73325154]
[1768417056459,2.99535719,3338.5,3337.5,2.99625468]
[1768417056859,6.98881479,3338.5,3337.4,3.72955997]
[1768417057281,1.03554349,3338.4,3337.4,0.394]
[1768417057489,0.99810041,3338.4,3337.4,0.394]
[1768417058572,3.99363706,3338.3,3337.4,0.394]
[1768417058762,0.99810041,3338.2,3337.4,0.394]
[1768417059161,0.99810041,3338.2,3337.4,3.39032369]
[1768417059355,0.99810041,3338.2,3337.5,0.63888329]
[1768417059660,0.99810041,3338.2,3337.4,0.394]
[1768417060359,0.99810041,3339.0,3337.5,0.9803218]
[1768417060665,0.99810041,3338.8,3337.7,2.99607514]
[1768417060866,2.99499835,3338.9,3337.7,3.97639694]
[1768417061176,5.9899967,3338.9,3337.8,0.39763969]
[1768417062066,2.99499835,3338.9,3337.8,0.39763969]
[1768417062397,0.99810041,3338.8,3337.8,0.39763969]
[1768417062605,0.99810041,3338.8,3337.9,0.394]
[1768417062978,2.99517776,3338.7,3337.9,0.394]
[1768417063381,2.99517776,3338.7,3337.9,3.38987194]
[1768417063583,1.39710041,3339.1,3337.9,3.38987194]
[1768417063773,2.99490865,3339.0,3337.9,3.38987194]
[1768417063974,0.39950091,3338.9,3337.9,3.38987194]
[1768417064168,0.99810041,3338.8,3337.8,2.99597673]
[1768417064374,0.99810041,3338.8,3338.0,0.394]
[1768417064763,0.99810041,3338.8,3337.4,0.9803218]
[1768417064963,6.98845593,3338.7,3337.6,2.99616488]
[1768417065189,8.03048623,3338.7,3337.7,0.394]
[1768417065388,8.03048623,3338.7,3337.7,3.39006204]
[1768417065688,5.03530847,3338.7,3337.8,2.99597801]
[1768417066058,0.39950091,3338.9,3337.9,3.02584817]
[1768417066262,3.3945332,3338.9,3337.9,3.02584817]
[1768417066868,3.3945332,3338.9,3337.8,2.99598537]
[1768417066869,7.3876659,3338.9,3337.8,2.99598537]
[1768417067882,4.39263361,3338.9,3337.8,2.99598537]
[1768417068394,7.3876659,3338.9,3337.8,2.99598537]
[1768417068569,0.77866659,3338.8,3337.8,2.99598537]
[1768417068971,2.99517776,3338.7,3337.8,2.99598537]
[1768417069177,0.99810041,3338.7,3337.8,2.99598537]
[1768417070401,0.001,3338.6,3337.8,2.99598537]
[1768417071402,0.92707267,3338.6,3337.6,0.69748003]
[1768417071601,0.92607267,3338.5,3337.9,0.394]
[1768417072795,0.37847886,3338.6,3337.9,0.394]
[1768417073310,3.37378443,3338.6,3337.9,0.394]
[1768417073605,0.37847886,3338.6,3337.9,3.38987859]
[1768417073812,0.37847886,3338.6,3337.9,0.394]
[1768417074099,0.001,3338.6,3337.9,3.38989562]
[1768417074273,0.001,3338.6,3337.9,6.38579124]
[1768417074471,0.002,3339.2,3338.4,0.9112932]
[1768417074675,0.002,3339.2,3338.5,0.394]
[1768417075298,0.002,3339.2,3338.5,3.38931062]
[1768417075903,0.002,3339.2,3338.6,0.63848071]
[1768417076088,0.92807267,3339.2,3338.6,0.63848071]
[1768417076489,0.92807267,3339.2,3338.6,0.394]
[1768417077705,0.92607267,3339.1,3338.6,0.394]
[1768417078080,0.92607267,3339.1,3338.1,2.99565696]
[1768417078282,0.92607267,3339.0,3338.2,0.394]
[1768417078481,0.92607267,3339.0,3338.2,3.38960317]
[1768417078907,0.92607267,3339.0,3338.2,0.394]
[1768417079310,0.92607267,3338.8,3337.8,2.99594745]
[1768417079517,0.92607267,3338.7,3337.8,0.394]
[1768417079704,0.92607267,3338.7,3337.8,3.38991269]
[1768417079892,3.92128626,3338.7,3337.8,3.38991269]
[1768417080212,0.92607267,3338.7,3337.8,3.38991269]
[1768417080415,0.92607267,3338.7,3337.9,0.33899127]
[1768417081318,3.92129834,3338.7,3337.9,0.33899127]
[1768417081483,0.96351351,3338.6,3337.3,0.002]
[1768417081682,0.92607267,3338.4,3337.3,0.002]
[1768417081885,0.92607267,3338.3,3337.3,0.002]
[1768417082086,0.92607267,3338.1,3337.3,0.002]
[1768417083797,3.92182995,3338.1,3337.3,0.002]
[1768417084000,0.92607267,3338.7,3337.3,0.9132932]
[1768417085210,0.92607267,3338.6,3337.4,2.99634445]
[1768417085432,0.92607267,3338.6,3337.5,0.73001443]
[1768417085794,0.92607267,3338.9,3337.6,0.9112932]
[1768417086494,0.92607267,3338.7,3337.5,0.73001443]
[1768417086705,0.92607267,3338.5,3337.6,0.394]
[1768417086904,0.92607267,3338.5,3337.7,0.41203589]
[1768417087290,0.92607267,3338.4,3337.7,0.41203589]
[1768417087491,0.92607267,3338.4,3337.6,0.394]
[1768417088518,0.92607267,3338.4,3337.6,3.39010496]
[1768417089122,3.92125782,3338.7,3337.7,2.99605415]
[1768417089322,0.92607267,3338.6,3337.6,3.39013104]
[1768417089516,0.92607267,3338.6,3337.6,4.1201006]
[1768417090026,0.92607267,3338.6,3337.6,7.1162655]
[1768417090322,0.92607267,3338.6,3337.7,0.02996075]
[1768417090529,0.92607267,3338.6,3337.6,4.1201006]
[1768417090735,0.92607267,3338.6,3337.7,0.50313938]
[1768417090896,0.92607267,3338.6,3337.7,0.394]